[Event "Susha Chess Rapid Women 2022"]
[Site "Shusha"]
[Date "2022.09.21"]
[Round "1.1"]
[White "Fataliyeva, Ulviyya"]
[Black "Mammadzada, Gunay"]
[Result "1/2-1/2"]
[ECO "A40"]
[WhiteElo "2408"]
[BlackElo "2473"]
[Annotator "TA"]
[PlyCount "91"]
[EventDate "2022.09.21"]
[EventType "tourn"]
[EventCountry "AZE"]
[SourceTitle "playchess.com"]
[Source "ChessBase"]
[SourceQuality "1"]
[TimeControl "900+10"]

{[%evp 11,91,20,20,8,13,3,14,1,37,13,33,29,42,20,12,22,54,43,41,33,42,33,48,52,41,34,89,77,86,108,116,116,117,116,98,93,103,106,130,82,97,0,15,15,15,1,8,0,0,0,0,0,0,0,0,0,0,0,0,0,0,-19,12,11,106,64,65,0,0,0,0,0,0,0,0,0,0,0,0,0,0,0]} 1. d4 {[%emt 0:00:03]} e6 {[%emt 0:00:01]} 2. Nf3 {[%emt 0:00:27]} f5 {[%emt 0:00:02]} 3. g3 {[%emt 0:02:37]} Nf6 {[%emt 0:00:04]} 4. Bg2 {[%emt 0:00:01]} d5 {[%emt 0:00:48]} 5. O-O {[%emt 0:00:23]} Bd6 {[%emt 0:00:11]} 6. b3 {[%emt 0:00:01]} O-O {[%emt 0:00:12]} 7. Ba3 {[%emt 0:00:03] A81: Dutch Defence: 2 g3.} Bxa3 {[%emt 0:00:54]} 8. Nxa3 {[%emt 0:00:01]} Qe7 {[%emt 0:00:02]} 9. Qc1 {[%emt 0:00:05]} c5 {[%emt 0:02:06] [#]} 10. dxc5 $146 {[%emt 0:00:46]} ({Predecessor:} 10. e3 Nc6 11. c4 cxd4 12. exd4 Bd7 13. Nc2 Rac8 14. Qb2 dxc4 15. bxc4 Na5 16. c5 {1-0 (59) Grasser,M (1903)-Horther Schneider,E (1756) Schwandorf 2015}) 10... Qxc5 {[%emt 0:00:06]} 11. c4 {[%emt 0:00:02]} d4 {[%emt 0:02:14]} 12. b4 {[%emt 0:01:18]} Qxb4 {[%emt 0:00:39]} 13. Nxd4 {[%emt 0:00:04]} Qc5 {[%emt 0:00:54]} 14. Nb3 {[%emt 0:00:46]} Qe7 {[%emt 0:00:07]} 15. c5 {[%emt 0:00:02]} e5 {[%emt 0:00:23]} 16. Nc4 {[%emt 0:02:40]} (16. Nb5 {with more complications.} Nc6 17. Nd6 e4 18. f3) 16... Nc6 {[%emt 0:00:18]} 17. Bxc6 {[%emt 0:00:49]} (17. Nd6 {is interesting.} e4 18. f3 Be6 19. fxe4 fxe4 20. Qe3) 17... bxc6 {[%emt 0:00:02]} 18. Qc3 {[%emt 0:00:19]} e4 {[%emt 0:01:24] [#]} ({Better is} 18... Be6 $1 $14) 19. Qe5 $1 $36 {[%emt 0:00:26][%mdl 2048] White has strong initiative.} Be6 {[%emt 0:00:57]} 20. Nd4 {[%emt 0:00:52][%csl LRc6,LRe6,LRf5]} Rae8 {[%emt 0:00:01]} 21. Nd6 {[%emt 0:00:23] Pair of Knights!} ({Don't play} 21. Nxe6 $6 Qxe6 22. Qxe6+ Rxe6 $14) ({Much weaker is} 21. Nxf5 $6 Bxf5 22. Qxf5 Nd5 $11) (21. Nxc6 $6 Qb7 22. N4a5 Qb5 $11) 21... Bd7 {[%emt 0:02:20]} 22. Qxe7 {[%emt 0:01:47] White is much more active.} Rxe7 {[%emt 0:00:01]} 23. Rab1 {[%emt 0:01:38]} ({Don't do} 23. N4xf5 Re5 24. Ne3 Rxc5 $14) 23... Re5 {[%emt 0:01:46]} 24. Rfc1 {[%emt 0:00:08]} e3 {[%emt 0:00:22] [#]} 25. fxe3 {[%emt 0:01:57]} (25. f4 $142 $1 {[%cal Rf4e5]} Rd5 26. Nf3) 25... Rxe3 {[%emt 0:00:01]} 26. N6xf5 {[%emt 0:01:08]} (26. Rb7 $16) 26... Bxf5 {[%emt 0:00:16]} 27. Nxf5 {[%emt 0:00:02]} Rxe2 {[%emt 0:00:29]} 28. Rb7 {[%emt 0:00:33]} Rf7 {[%emt 0:01:54] Prevents Ne7+.} 29. Rxf7 {[%emt 0:00:07]} Kxf7 $11 {[%emt 0:00:01][%mdl 4096] Endgame KRN-KRN} 30. Nd4 {[%emt 0:00:00][%csl LRc6,LRe2]} Rxa2 {[%emt 0:00:09]} 31. Nxc6 {[%emt 0:00:02]} Nd5 {[%emt 0:00:51]} 32. Nd4 {[%emt 0:00:30]} Rd2 {[%emt 0:00:05]} 33. Nb5 {[%emt 0:00:01]} a6 {[%emt 0:00:11]} 34. Nd6+ {[%emt 0:00:12]} Ke6 {[%emt 0:00:01]} 35. Ne4 {[%emt 0:00:23]} Re2 {[%emt 0:00:17]} 36. Ng5+ {[%emt 0:00:01]} Kf5 {[%emt 0:00:20]} 37. Nxh7 {[%emt 0:00:13]} g5 {[%emt 0:00:06]} (37... a5 $11) 38. Rf1+ {[%emt 0:00:16]} Kg4 {[%emt 0:00:22]} 39. Nf6+ {[%emt 0:00:10]} ({White should try} 39. Rd1 $1 $14 Nc7 40. Rc1) 39... Nxf6 {[%emt 0:00:05] The position is equal.} 40. Rxf6 {[%emt 0:00:01] KR-KR} Rc2 {[%emt 0:00:14]} 41. Rc6 {[%emt 0:00:07]} a5 {[%emt 0:00:05]} 42. Rc8 {[%emt 0:00:16]} a4 {[%emt 0:00:09]} 43. Ra8 {[%emt 0:00:01]} Kf3 {[%emt 0:00:25][%cal Rc2c1]} 44. Rf8+ {[%emt 0:00:19]} Kg4 {[%emt 0:00:02] aiming for ...a3.} 45. Ra8 {[%emt 0:00:15]} Kf3 {[%emt 0:00:01][%cal Rc2c1]} 46. Rf8+ {[%emt 0:00:01] Weighted Error Value: White=0.11 (very precise) /Black=0.10 (very precise)} 1/2-1/2

[Event "Susha Chess Rapid Women 2022"]
[Site "Shusha"]
[Date "2022.09.21"]
[Round "1.2"]
[White "Arabidze, Meri"]
[Black "Ozturk Orenli, Kubra"]
[Result "0-1"]
[ECO "D21"]
[WhiteElo "2422"]
[BlackElo "2319"]
[Annotator "TA"]
[PlyCount "64"]
[EventDate "2022.09.21"]
[EventType "tourn"]
[EventCountry "AZE"]
[SourceTitle "playchess.com"]
[Source "ChessBase"]
[SourceQuality "1"]
[TimeControl "900+10"]

{[%evp 9,64,-28,-36,-58,-50,-72,-56,-107,-89,-85,-47,-45,-54,-97,-96,-107,-92,-132,-131,-165,-168,-178,-186,-163,-169,-227,-218,-193,-128,-123,-123,-124,-93,-127,-70,-189,-135,-193,-166,-475,-137,-157,144,-276,-258,-622,-613,-591,-560,-1381,-1333,-29982,-29983,-29982,-29982,-12840,-12812]} 1. d4 {[%emt 0:00:03][%cal Bd2d4,Bd4d5][%mdl 32]} d5 {[%emt 0:00:01]} 2. c4 {[%emt 0:00:02]} dxc4 {[%emt 0:00:02]} 3. Nf3 {[%emt 0:00:04]} a6 {[%emt 0:00:38]} 4. a4 {[%emt 0:01:35]} Nc6 {[%emt 0:00:24]} 5. Nc3 {[%emt 0:01:12]} Bg4 {[%emt 0:00:57]} 6. d5 {[%emt 0:01:07] D21: Queen's Gambit Accepted: 3 Nf3 sidelines.} Bxf3 {[%emt 0:01:39]} 7. gxf3 {[%emt 0:01:04]} Na5 {[%emt 0:00:14]} 8. e4 {[%emt 0:00:55]} (8. Bh3 $15) 8... e6 {[%emt 0:01:34]} 9. Be3 {[%emt 0:01:25]} Nf6 {[%emt 0:02:26]} 10. dxe6 {[%emt 0:00:45]} fxe6 {[%emt 0:00:16] [#]} 11. Qc2 $146 {[%emt 0:01:45]} ({Predecessor:} 11. Bh3 Qe7 12. O-O Nd7 13. f4 O-O-O 14. Qg4 Nb3 15. Rad1 Nbc5 16. Rd4 Nf6 17. Qf3 Rxd4 18. Bxd4 {1-0 (74) Havanecz,B (2249)-Rodchenkov,S (2346) Chess.com INT 2022}) 11... Bb4 {[%emt 0:00:12]} 12. Be2 {[%emt 0:01:20]} O-O {[%emt 0:00:49]} ({Don't take} 12... Nb3 13. Rd1 Qe7 14. Bxc4 $14) 13. f4 {[%emt 0:00:01]} Qe8 {[%emt 0:00:21] Black is more active.} ({Much worse is} 13... Nb3 $6 14. Rd1 Qe7 15. e5 Bxc3+ 16. bxc3 $11) 14. Rg1 {[%emt 0:00:20]} Rd8 {[%emt 0:00:35]} 15. Kf1 {[%emt 0:01:41]} Nb3 {[%emt 0:01:34]} 16. Rd1 {[%emt 0:00:52]} Rxd1+ {[%emt 0:00:03]} 17. Qxd1 {[%emt 0:00:51]} (17. Bxd1 {might work better.} c5 18. e5 Bxc3 19. exf6 Bxf6 20. Qxc4) 17... Bxc3 $19 {[%emt 0:01:35]} 18. bxc3 {[%emt 0:00:01]} b5 {[%emt 0:00:41]} ({Inferior is} 18... Nxe4 19. Bxc4 Nbd2+ 20. Bxd2 $11) (18... Qc6 $19 19. f3 Qxa4) 19. axb5 $17 axb5 {[%emt 0:00:02]} 20. Bf3 {[%emt 0:00:40]} Qd8 {[%emt 0:00:12]} 21. Ke2 {[%emt 0:01:01]} c5 {[%emt 0:00:23]} (21... Qa8 $17 {aiming for ...Rd8.} 22. Qc2 Qc6) 22. Rg5 {[%emt 0:00:52]} (22. Qxd8 $15 Rxd8 23. Rd1 Rxd1 24. Kxd1) 22... Qc7 {[%emt 0:01:21]} ({Better is} 22... Qa5 $19 23. e5 Rd8) 23. Qc2 {[%emt 0:00:27]} (23. Kf1 $17) 23... b4 {[%emt 0:00:45]} 24. cxb4 $2 {[%emt 0:00:26]} (24. Kf1 {is a better chance.}) 24... cxb4 $2 {[%emt 0:00:02]} (24... Nd4+ $19 {is more deadly.} 25. Bxd4 cxd4) 25. Rb5 {[%emt 0:00:01]} Nd7 $2 {[%emt 0:01:41] [#] Pair of Knights!} (25... Rd8 $17 {[%cal Od8d2] ...Rd2+! is the strong threat.} 26. Kf1 Nd4 27. Bxd4 Rxd4) 26. Rxb4 $2 {[%emt 0:00:10][%mdl 8192] [#] This move loses the game for White.} (26. Bg4 $1 $16 {[%cal Rg4e6]} Re8 27. Rxb4) 26... Qxf4 $1 $19 {[%emt 0:00:03]} 27. Bg2 {[%emt 0:00:46]} (27. Bxf4 Nd4+ 28. Kd1 Nxc2 29. Kxc2 Rxf4 30. Bd1) 27... Qg4+ {[%emt 0:00:49]} 28. Kf1 {[%emt 0:00:01]} Ra8 {[%emt 0:00:12] ( -> ...Ra1+)} 29. f3 {[%emt 0:00:20]} Ra1+ {[%emt 0:00:01]} 30. Bc1 {[%emt 0:00:09]} Qg5 {[%emt 0:00:19]} 31. Rxc4 {[%emt 0:00:12]} Rxc1+ {[%emt 0:00:10]} 32. Qxc1 {[%emt 0:00:08]} Nxc1 {[%emt 0:00:02] Weighted Error Value: White=0.98/Black=0.44} 0-1

[Event "Susha Chess Rapid Women 2022"]
[Site "Shusha"]
[Date "2022.09.21"]
[Round "1.3"]
[White "Dzagnidze, Nana"]
[Black "Mammadova, Gulnar"]
[Result "1-0"]
[ECO "D10"]
[WhiteElo "2526"]
[BlackElo "2382"]
[Annotator "TA"]
[PlyCount "65"]
[EventDate "2022.09.21"]
[EventType "tourn"]
[EventCountry "AZE"]
[SourceTitle "playchess.com"]
[Source "ChessBase"]
[SourceQuality "1"]
[TimeControl "900+10"]

{[%evp 13,65,14,18,15,22,17,17,25,21,26,31,30,20,0,43,32,29,36,45,23,41,38,43,37,41,49,50,16,44,47,73,53,550,585,573,566,763,760,747,770,771,677,757,754,928,928,916,839,1183,1163,1287,1284,2031,1973]} 1. c4 {[%emt 0:00:02]} c6 {[%emt 0:00:03]} 2. d4 {[%emt 0:00:06]} d5 {[%emt 0:00:02]} 3. cxd5 {[%emt 0:00:19]} cxd5 {[%emt 0:00:02]} 4. Nc3 {[%emt 0:00:01]} Nf6 {[%emt 0:00:24]} 5. Bf4 {[%emt 0:00:04]} Nc6 {[%emt 0:00:38]} 6. e3 {[%emt 0:00:04]} Bf5 {[%emt 0:00:07]} 7. Qb3 {[%emt 0:00:18]} Na5 {[%emt 0:00:02]} 8. Qa4+ {[%emt 0:00:07] D10: Slav Defence: 3 cxd5 (without early Nf3) and 3 Nc3.} Bd7 {[%emt 0:00:01]} 9. Qc2 {[%emt 0:00:02]} e6 {[%emt 0:00:51]} 10. Nf3 {[%emt 0:00:18] The position is equal.} Rc8 {[%emt 0:00:02][%cal Of6e4]} 11. Bd3 {[%emt 0:00:17] Prevents Ne4.} Bb4 {[%emt 0:01:11][%cal Of6e4] is recently more successful than 11...Be7.} 12. O-O {[%emt 0:00:58]} Nh5 {[%emt 0:01:24]} 13. Be5 {[%emt 0:04:25] [#]} h6 $146 {[%emt 0:02:53]} ({Predecessor:} 13... f6 14. Bg3 Nxg3 15. hxg3 Nc4 16. a3 Bxc3 17. bxc3 Nd6 18. a4 g6 19. Nd2 O-O {½-½ (66) Nakamura,H (2736)-Caruana,F (2835) chess24.com INT 2020}) 14. Rfc1 {[%emt 0:02:08]} O-O {[%emt 0:00:34]} 15. h3 {[%emt 0:01:10]} Nf6 {[%emt 0:00:41]} 16. Bg3 {[%emt 0:00:56]} b5 {[%emt 0:03:55]} 17. Ne5 {[%emt 0:01:17]} a6 {[%emt 0:00:02]} 18. Qe2 {[%emt 0:00:35]} Be7 {[%emt 0:01:38]} 19. Rc2 {[%emt 0:00:15]} Nc6 {[%emt 0:01:22]} 20. Nxc6 {[%emt 0:02:51]} Bxc6 {[%emt 0:00:04]} 21. a4 {[%emt 0:00:29][%cal Ba2a4,Ba4a5,Ba5a6,Ba6a7][%mdl 32]} Ne4 {[%emt 0:01:00]} 22. Bf4 {[%emt 0:00:31][%cal Ra4b5]} ({Much worse is} 22. axb5 Nxg3 23. fxg3 Bxb5 $11) 22... b4 $2 {[%emt 0:00:47][%mdl 8192] [#] Loses the game.} (22... Qd7 $14) 23. Nxe4 $18 {[%emt 0:00:07] White is clearly winning.} dxe4 {[%emt 0:00:23]} 24. Bxa6 {[%emt 0:00:01]} Bd7 {[%emt 0:00:17]} 25. Bxc8 {[%emt 0:00:05]} Bxc8 {[%emt 0:00:01]} 26. a5 {[%emt 0:00:16]} Bb7 {[%emt 0:00:13]} 27. Qb5 {[%emt 0:00:12]} Bd5 {[%emt 0:00:03]} 28. a6 {[%emt 0:00:23]} Bd6 {[%emt 0:00:41]} 29. Bxd6 {[%emt 0:00:17]} Qxd6 {[%emt 0:00:02]} 30. Qc5 {[%emt 0:00:14]} Qb8 {[%emt 0:00:16]} 31. a7 {[%emt 0:00:19]} Qa8 {[%emt 0:00:19]} 32. Qxb4 {[%emt 0:00:05]} f5 {[%emt 0:00:19]} 33. Rc7 {[%emt 0:00:04] Weighted Error Value: White=0.13 (very precise) /Black=0.43} 1-0

[Event "Susha Chess Rapid Women 2022"]
[Site "Shusha"]
[Date "2022.09.21"]
[Round "1.4"]
[White "Efroimski, Marsel"]
[Black "Zawadzka, Jolanta"]
[Result "1/2-1/2"]
[ECO "C48"]
[WhiteElo "2462"]
[BlackElo "2401"]
[Annotator "TA"]
[PlyCount "118"]
[EventDate "2022.09.21"]
[EventType "tourn"]
[EventCountry "AZE"]
[SourceTitle "playchess.com"]
[Source "ChessBase"]
[SourceQuality "1"]
[TimeControl "900+10"]

{[%evp 16,118,4,11,10,16,10,5,15,16,9,-12,-16,-13,-17,-29,0,-27,0,0,0,-24,-23,-29,-24,-95,0,-12,-12,-3,-11,-11,25,22,28,5,8,-6,0,0,0,0,0,0,0,0,7,7,8,-33,23,-43,39,0,8,22,44,55,62,59,117,3,3,0,15,17,14,0,0,0,0,0,0,0,15,0,0,0,22,0,0,0,0,0,0,0,8,8,8,8,10,10,10,11,28,8,8,0,0,0,0,0,0,0,0]} 1. e4 {[%emt 0:00:02]} e5 {[%emt 0:00:02]} 2. Nf3 {[%emt 0:00:01]} Nc6 {[%emt 0:00:02]} 3. Nc3 {[%emt 0:00:01]} Nf6 {[%emt 0:00:03]} 4. Bb5 {[%emt 0:00:01]} Nd4 {[%emt 0:00:04]} 5. Nxd4 {[%emt 0:00:17]} exd4 {[%emt 0:00:02]} 6. e5 {[%emt 0:00:02]} dxc3 {[%emt 0:00:16]} 7. exf6 {[%emt 0:00:03]} Qxf6 {[%emt 0:00:21]} 8. dxc3 {[%emt 0:00:01]} Qe5+ {[%emt 0:00:31]} 9. Be2 {[%emt 0:00:02]} Bc5 {[%emt 0:01:51] C48: Four Knights: 4 Bb5, replies other than 4...Bb4.} 10. O-O {[%emt 0:00:16]} O-O {[%emt 0:00:17]} 11. Bf3 {[%emt 0:00:43]} c6 {[%emt 0:01:42]} 12. Re1 {[%emt 0:00:20]} Qf6 {[%emt 0:00:04] [#]} 13. c4 $146 {[%emt 0:00:27]} ({Predecessor:} 13. Be3 d6 14. Bd4 Bxd4 15. Qxd4 Qxd4 16. cxd4 Bf5 17. Be4 Bxe4 18. Rxe4 Rfe8 19. Rae1 {½-½ (30) Praggnanandhaa,R (2517)-Gledura,B (2613) Stockholm 2017}) 13... d6 {[%emt 0:01:00]} 14. c3 {[%emt 0:01:48]} Be6 {[%emt 0:00:50]} 15. Re4 {[%emt 0:01:37]} Rad8 {[%emt 0:02:33]} 16. Rf4 {[%emt 0:00:51]} Qe5 {[%emt 0:00:44]} 17. Re4 {[%emt 0:00:24]} Qf6 {[%emt 0:00:13]} 18. Rf4 {[%emt 0:00:30]} Qe7 {[%emt 0:01:36]} 19. b4 {[%emt 0:00:48]} Bb6 {[%emt 0:00:01]} 20. Re4 {[%emt 0:03:30]} (20. Qe1 $11 {keeps the balance.}) 20... f5 {[%emt 0:00:41]} (20... d5 $17 21. cxd5 cxd5) 21. Re1 {[%emt 0:00:33][%cal Oc1g5]} Qf7 {[%emt 0:00:05]} 22. b5 {[%emt 0:01:52]} Bxc4 {[%emt 0:01:01]} 23. bxc6 {[%emt 0:00:03]} d5 {[%emt 0:00:47]} (23... bxc6 $5 {[%cal Rd6d5]} 24. Bg5 Rc8 $11) 24. cxb7 {[%emt 0:01:39]} Qxb7 {[%emt 0:00:08]} 25. Bg5 {[%emt 0:00:16]} Rde8 {[%emt 0:00:29]} 26. Qa4 {[%emt 0:00:30]} Qc8 {[%emt 0:00:57]} 27. Bf4 {[%emt 0:00:13]} Re6 {[%emt 0:02:14]} 28. Qc2 {[%emt 0:00:58]} Rfe8 {[%emt 0:00:09]} 29. Rxe6 {[%emt 0:00:24]} Qxe6 {[%emt 0:00:01]} 30. h4 {[%emt 0:00:21]} h6 {[%emt 0:00:11]} 31. a4 {[%emt 0:00:07][%cal Ba2a4,Ba4a5][%mdl 32]} Qf6 {[%emt 0:00:15]} 32. a5 {[%emt 0:00:28] [#]} Bc5 {[%emt 0:00:03]} (32... Bxa5 $1 $15 33. Qa4 {[#]} Qd8 $1) 33. Qd2 {[%emt 0:00:08]} (33. h5 $11) 33... Rd8 {[%emt 0:00:33]} (33... Kh7 $15) 34. Be3 {[%emt 0:00:45]} Bxe3 {[%emt 0:00:13]} 35. Qxe3 {[%emt 0:00:02]} a6 {[%emt 0:00:19]} 36. h5 {[%emt 0:00:06]} Qf7 {[%emt 0:00:20]} 37. Re1 {[%emt 0:00:29]} Qd7 {[%emt 0:00:11]} (37... Qf6 $1 $14) 38. Qe7 {[%emt 0:00:38]} ({White should try} 38. Qf4 $16) 38... Qxe7 $1 $11 {[%emt 0:00:05]} 39. Rxe7 {[%emt 0:00:01][%mdl 4096] Endgame KRB-KRB} d4 {[%emt 0:00:10]} 40. cxd4 {[%emt 0:00:05]} Rxd4 {[%emt 0:00:05]} 41. Rc7 {[%emt 0:00:11][%cal Oc7c4] And now Rxc4! would win.} Kf8 {[%emt 0:00:10]} 42. Rc8+ {[%emt 0:00:16]} Ke7 $1 {[%emt 0:00:05]} 43. Rc7+ {[%emt 0:00:07]} Kf6 {[%emt 0:00:05]} 44. Rc6+ {[%emt 0:00:02]} Ke7 {[%emt 0:00:04]} 45. Rc7+ {[%emt 0:00:17]} Kf6 {[%emt 0:00:04]} 46. Rc6+ {[%emt 0:00:02]} Ke7 {[%emt 0:00:03]} 47. Kh2 {[%emt 0:00:25]} (47. Rg6 $5 {[%cal Rg6g7]}) 47... Bb5 {[%emt 0:00:15]} 48. Rc7+ {[%emt 0:00:06][%cal Bc6c7,Bc7b7,Bb7b6,Bb6g6][%mdl 32]} Kf6 {[%emt 0:00:02]} 49. Rb7 {[%emt 0:00:04]} Ra4 {[%emt 0:00:09]} 50. Rb6+ {[%emt 0:00:02]} Ke5 {[%emt 0:00:03]} 51. Rg6 {[%emt 0:00:04]} Rxa5 {[%emt 0:00:54]} 52. Rxg7 {[%emt 0:00:02]} Ra2 {[%emt 0:00:15]} 53. Rg6 {[%emt 0:00:09]} Rxf2 {[%emt 0:00:08]} 54. Rxh6 {[%emt 0:00:02]} Rd2 {[%emt 0:00:04]} 55. Rb6 {[%emt 0:00:28]} Kf4 {[%emt 0:00:26] The position is equal.} 56. Bb7 {[%emt 0:00:27]} Rd7 {[%emt 0:00:15]} 57. Bxa6 {[%emt 0:00:20]} Bxa6 {[%emt 0:00:01]} 58. Rxa6 {[%emt 0:00:01]} Rh7 {[%emt 0:00:03]} 59. h6 {[%emt 0:00:06] Hoping for Rg6.} Kg5 {[%emt 0:00:01] Against Rg6+.  Weighted Error Value: White=0.14 (very precise) /Black=0.12 (very precise)} 1/2-1/2

[Event "Susha Chess Rapid Women 2022"]
[Site "Shusha"]
[Date "2022.09.21"]
[Round "1.5"]
[White "Beydullayeva, Govhar"]
[Black "Balajayeva, Khanim"]
[Result "1/2-1/2"]
[ECO "D26"]
[WhiteElo "2346"]
[BlackElo "2379"]
[Annotator "TA"]
[PlyCount "57"]
[EventDate "2022.09.21"]
[EventType "tourn"]
[EventCountry "AZE"]
[SourceTitle "playchess.com"]
[Source "ChessBase"]
[SourceQuality "1"]
[TimeControl "900+10"]

{[%evp 15,57,20,40,14,43,19,19,0,5,10,12,10,29,39,58,26,35,12,18,25,49,0,70,12,10,-16,-12,-14,-10,-18,-14,-47,-50,-69,-64,-68,-22,-16,-7,-7,-8,-10,0,0]} 1. d4 {[%emt 0:00:04]} d5 {[%emt 0:00:01]} 2. c4 {[%emt 0:00:01]} dxc4 {[%emt 0:00:02]} 3. Nf3 {[%emt 0:00:02]} Nf6 {[%emt 0:00:03]} 4. e3 {[%emt 0:00:01]} e6 {[%emt 0:00:02]} 5. Bxc4 {[%emt 0:00:03]} a6 {[%emt 0:00:01]} 6. O-O {[%emt 0:00:23]} b5 {[%emt 0:00:01]} 7. Bd3 {[%emt 0:00:30] 7.Be2 is the hot move.} Bb7 {[%emt 0:00:04]} 8. a4 {[%emt 0:00:03]} b4 {[%emt 0:00:10]} 9. Nbd2 {[%emt 0:00:43] D26: Queen's Gambit Accepted: 4 e3 e6 5 Bxc5 c5 sidelines.} Nbd7 {[%emt 0:00:18]} 10. b3 {[%emt 0:02:37]} c5 {[%emt 0:00:16]} 11. Nc4 {[%emt 0:01:03]} Be7 {[%emt 0:00:13]} 12. Bb2 {[%emt 0:00:39]} O-O {[%emt 0:00:08]} 13. Qe2 {[%emt 0:00:18]} Qc7 {[%emt 0:03:14]} 14. Rac1 {[%emt 0:01:14]} Rfd8 {[%emt 0:01:09] [#]} 15. Rfd1 $146 {[%emt 0:00:26]} ({Predecessor:} 15. a5 Rac8 16. dxc5 Bxc5 17. Nfe5 Nxe5 18. Bxe5 Qc6 19. f3 Nd5 20. Kh1 f6 21. Bb2 {0-1 (41) Ajay Krishna,S (2372)-Averjanov,A (2399) Chess.com INT 2022}) 15... Rac8 {[%emt 0:00:45]} 16. Bb1 {[%emt 0:00:14]} Ne4 {[%emt 0:02:18]} 17. Nfe5 {[%emt 0:01:11]} Nxe5 {[%emt 0:02:06]} 18. Nxe5 {[%emt 0:00:16]} (18. dxe5 $14 {feels stronger.} Rxd1+ 19. Rxd1) 18... Bf6 {[%emt 0:02:27]} ({Black should try} 18... Bd6 $11) 19. Ng4 {[%emt 0:02:39]} (19. Bxe4 $14 Bxe4 20. Rxc5) 19... Be7 $1 $11 {[%emt 0:02:26]} 20. f3 {[%emt 0:00:02]} Nc3 {[%emt 0:00:40]} 21. Bxc3 {[%emt 0:00:05]} bxc3 {[%emt 0:00:01]} 22. Rxc3 {[%emt 0:00:02]} Qa5 23. Rcd3 {[%emt 0:02:11]} cxd4 {[%emt 0:00:32]} 24. Rxd4 {[%emt 0:00:18]} Rxd4 {[%emt 0:00:16]} 25. exd4 {[%emt 0:00:03]} Bd5 {[%emt 0:00:18]} (25... Rc3 $15) 26. Ne3 {[%emt 0:00:51] The position is equal.} Rc3 {[%emt 0:00:35]} 27. Nxd5 {[%emt 0:00:42]} Qxd5 {[%emt 0:00:01]} 28. Qe4 {[%emt 0:02:52]} Qxe4 {[%emt 0:00:25]} 29. Bxe4 {[%emt 0:00:05] Weighted Error Value: White=0.19 (very precise) /Black=0.15 (very precise)} 1/2-1/2

[Event "Susha Chess Rapid Women 2022"]
[Site "Shusha"]
[Date "2022.09.22"]
[Round "2.1"]
[White "Mammadova, Gulnar"]
[Black "Arabidze, Meri"]
[Result "0-1"]
[ECO "B40"]
[WhiteElo "2382"]
[BlackElo "2422"]
[Annotator "TA"]
[PlyCount "78"]
[EventDate "2022.09.21"]
[EventType "tourn"]
[EventCountry "AZE"]
[SourceTitle "playchess.com"]
[Source "ChessBase"]
[SourceQuality "1"]
[TimeControl "900+10"]

{[%evp 9,78,16,16,12,10,10,9,9,8,12,16,0,5,-23,-25,-20,-20,-56,-52,-49,-34,-36,-28,-60,-58,-101,-87,-145,-145,-163,-124,-164,-137,-195,-112,-270,-241,-459,-470,-529,-529,-518,-261,-284,-231,-226,-222,-211,-230,-307,-297,-311,-310,-296,-301,-291,-297,-726,-712,-1133,-867,-2211,-1885,-29986,-29987,-29991,-29992,-29996,-29997,-29998,-29999]} 1. e4 {[%emt 0:00:02]} c5 {[%emt 0:00:01]} 2. Nf3 {[%emt 0:00:02]} e6 {[%emt 0:00:01]} 3. b3 {[%emt 0:00:02]} a6 {[%emt 0:00:02]} 4. Bb2 {[%emt 0:00:39]} Nc6 {[%emt 0:00:01]} 5. c4 {[%emt 0:02:18]} Qc7 {[%emt 0:00:02]} 6. g3 {[%emt 0:00:09] B40: Sicilian: 2...e6, Unusual lines.} Nf6 {[%emt 0:00:03]} 7. Nc3 {[%emt 0:00:06]} Nd4 {[%emt 0:01:04]} 8. Bg2 {[%emt 0:00:21] The position is equal.} d6 {[%emt 0:00:02]} 9. O-O {[%emt 0:01:01]} Be7 {[%emt 0:00:01]} 10. Ne2 {[%emt 0:01:42]} e5 {[%emt 0:00:20]} 11. Nfxd4 {[%emt 0:00:27]} cxd4 {[%emt 0:00:04]} 12. f4 {[%emt 0:01:10]} O-O {[%emt 0:00:22]} 13. h3 {[%emt 0:00:23]} b5 {[%emt 0:00:36] [#]} 14. d3 $146 {[%emt 0:00:11]} ({Predecessor:} 14. Rc1 bxc4 15. Rxc4 Qb6 16. Kh2 Be6 17. Rc1 Rfc8 18. f5 Bd7 19. g4 Ne8 20. Ng1 Rxc1 21. Bxc1 {½-½ (60) Navara,D (2719)-Svidler,P (2723) chess24.com INT 2020}) 14... bxc4 {[%emt 0:00:17]} 15. bxc4 {[%emt 0:00:09]} Rb8 {[%emt 0:00:25]} 16. Bc1 {[%emt 0:00:02]} Nd7 {[%emt 0:00:22][%cal Bf6d7,Bd7c5,Bc5e6,Be6g5][%mdl 32]} 17. g4 {[%emt 0:00:11]} Nc5 {[%emt 0:00:27]} 18. f5 {[%emt 0:01:26]} ({White should play} 18. Qd2) 18... Qd8 $17 {[%emt 0:00:01] Black is more active.} 19. Ng3 {[%emt 0:00:10]} Bg5 {[%emt 0:00:40]} 20. Rf3 {[%emt 0:00:44]} Bd7 {[%emt 0:00:43]} 21. Nh5 {[%emt 0:00:15]} (21. Bf1 $17 {was called for.}) 21... g6 {[%emt 0:03:11]} (21... Ba4 $19 22. Qe2 Bxc1 23. Rxc1 Qh4) 22. f6 $2 {[%emt 0:00:29] [#] Now White is beyond hope.} (22. Ng3 $17 {was worth a try.}) 22... Ne6 $19 {[%emt 0:00:39]} (22... gxh5 23. Bxg5 hxg4 24. Bh6 $11) 23. Bxg5 $2 {[%emt 0:02:30]} (23. Ng3 {only move.}) 23... Nxg5 {[%emt 0:00:02]} 24. Rg3 {[%emt 0:00:34]} Ne6 {[%emt 0:03:10]} ({Weaker is} 24... gxh5 25. gxh5 Kh8 26. Rxg5 $17) 25. g5 {[%emt 0:01:10]} Kh8 {[%emt 0:01:45] Against Ng7} 26. Ng7 {[%emt 0:00:31]} Nxg7 {[%emt 0:00:02]} 27. fxg7+ {[%emt 0:00:02]} Kxg7 {[%emt 0:00:01]} 28. h4 {[%emt 0:00:23]} f6 {[%emt 0:00:22]} 29. Qe2 {[%emt 0:00:43]} fxg5 {[%emt 0:00:09]} 30. hxg5 {[%emt 0:00:14]} Rf4 {[%emt 0:00:06]} 31. Rf1 {[%emt 0:00:08]} Qe7 {[%emt 0:00:11]} 32. Qd2 {[%emt 0:01:08]} Rbf8 {[%emt 0:00:20] [#] And now ...Bg4 would win.} 33. Rb1 $2 {[%emt 0:00:02]} (33. Bf3) 33... Bg4 {[%emt 0:00:29]} 34. Qb4 {[%emt 0:00:25]} R8f7 {[%emt 0:00:26]} 35. Qb8 {[%emt 0:00:10]} Qxg5 {[%emt 0:00:20] ( -> ...Qh4)} 36. Qxd6 {[%emt 0:00:23]} h5 {[%emt 0:00:11] Black mates.} 37. Bh3 {[%emt 0:00:22]} Rf3 {[%emt 0:00:32]} 38. Rxg4 {[%emt 0:00:25]} Qe3+ {[%emt 0:00:30]} 39. Kg2 {[%emt 0:00:07]} Qf2+ {[%emt 0:00:02][%mdl 64] Deflection, Double Attack.  Weighted Error Value: White=0.98/Black=0.27 (precise)} 0-1